bitfinex/quotes_BTCUSD_20220101
["timestamp","ask_amount","ask_price","bid_price","bid_amount"]
[1640998279105,7.002e-05,46713.0,46712.0,2.14613557]
[1640998279707,7.002e-05,46713.0,46712.0,2.48324957]
[1640998282565,0.00807354,46719.0,46713.0,0.142209]
[1640998282757,0.00807354,46719.0,46713.0,0.2553719]
[1640998282956,0.00807354,46719.0,46712.0,2.14613557]
[1640998283357,0.00807354,46719.0,46713.0,0.00207799]
[1640998283758,6.782e-05,46718.0,46713.0,0.00207799]
[1640998284759,6.782e-05,46718.0,46713.0,0.24827626]
[1640998284960,6.782e-05,46718.0,46713.0,0.25611113]
[1640998285160,6.782e-05,46718.0,46713.0,0.00207799]
[1640998286607,6.782e-05,46718.0,46713.0,0.00063699]
[1640998289007,6.782e-05,46718.0,46713.0,0.00135748]
[1640998291544,6.782e-05,46718.0,46713.0,0.26331121]
[1640998291744,6.782e-05,46718.0,46713.0,0.00135748]
[1640998294410,0.05360082,46718.0,46713.0,0.00135748]
[1640998303996,0.10360082,46718.0,46713.0,0.00135748]
[1640998304201,0.053532,46716.0,46713.0,0.00135748]
[1640998306161,0.053532,46716.0,46707.0,0.62265331]
[1640998306162,0.24350814,46715.0,46707.0,0.62265331]
[1640998306463,0.053547,46711.0,46707.0,0.62265331]
[1640998307062,0.15,46708.0,46707.0,0.62265331]
[1640998307461,0.44922711,46708.0,46707.0,0.62265331]
[1640998308266,0.46913013,46708.0,46707.0,0.62265331]
[1640998308464,0.52267813,46708.0,46707.0,0.62265331]
[1640998308797,0.52267813,46708.0,46707.0,0.49765331]
[1640998309203,0.09334743,46708.0,46707.0,0.49765331]
[1640998309402,0.07344441,46708.0,46707.0,0.49765331]
[1640998310000,0.04844441,46712.0,46708.0,0.78]
[1640998310201,0.14865618,46709.0,46707.0,0.49765331]
[1640998310402,0.06376184,46708.0,46707.0,0.49765331]
[1640998310800,0.11730684,46708.0,46707.0,0.49765331]
[1640998311603,0.11730684,46708.0,46707.0,0.82819509]
[1640998312863,0.11730684,46708.0,46707.0,0.49765331]
[1640998316065,0.21730684,46708.0,46707.0,0.49765331]
[1640998316322,0.21859264,46708.0,46707.0,0.49765331]
[1640998317124,0.47702524,46708.0,46707.0,0.49765331]
[1640998317526,0.57702524,46708.0,46707.0,0.49765331]
[1640998318925,0.5960772,46708.0,46707.0,0.49765331]
[1640998319326,0.61623187,46708.0,46707.0,0.49765331]
[1640998319527,0.59717991,46708.0,46707.0,0.49765331]
[1640998320162,0.61700681,46708.0,46707.0,0.49765331]
[1640998320362,0.59685214,46708.0,46707.0,0.49765331]
[1640998321262,0.85516883,46708.0,46707.0,0.49765331]
[1640998321464,0.83534193,46708.0,46707.0,0.49765331]
[1640998322263,2.5486192,46708.0,46706.0,5.5281111]
[1640998322569,2.5486192,46708.0,46706.0,4.41446261]
[1640998322570,2.96504143,46707.0,46706.0,4.41446261]
[1640998322863,1.95462384,46707.0,46706.0,3.98592861]
[1640998323162,2.31985202,46707.0,46706.0,3.98592861]
[1640998323362,2.44020639,46707.0,46706.0,3.55740861]
[1640998323564,2.85020639,46707.0,46706.0,3.26719492]
[1640998323804,2.44020639,46707.0,46706.0,3.26719492]
[1640998324098,2.71707521,46707.0,46706.0,2.83865192]
[1640998324298,2.73567483,46707.0,46706.0,2.83865192]
[1640998324597,3.22905287,46707.0,46706.0,2.41007492]
[1640998324800,3.2291132,46707.0,46706.0,2.41007492]
[1640998324998,3.2291132,46707.0,46706.0,1.98154092]
[1640998325202,3.24760876,46707.0,46706.0,1.98154092]
[1640998325397,3.22900914,46707.0,46706.0,1.98154092]
[1640998325598,3.22900914,46707.0,46706.0,0.30438677]
[1640998326000,0.2,46702.0,46685.0,0.6516258]
[1640998326200,0.337114,46703.0,46685.0,0.6516258]
[1640998326201,0.00126681,46688.0,46685.0,0.6516258]
[1640998327199,0.06381268,46686.0,46685.0,0.6516258]
[1640998327854,0.11381268,46686.0,46685.0,0.6516258]
[1640998331892,0.11381268,46686.0,46685.0,0.6466258]
[1640998335648,0.09991268,46686.0,46685.0,0.6466258]
[1640998337851,0.06381268,46686.0,46685.0,0.6466258]
[1640998340107,0.06381268,46686.0,46685.0,0.64792098]
[1640998344357,0.06381268,46686.0,46685.0,0.64292098]
[1640998345356,0.06381268,46686.0,46685.0,0.64411294]
[1640998346158,0.06381268,46686.0,46685.0,0.63911294]
[1640998346415,0.06381268,46686.0,46685.0,0.43911294]
[1640998347221,0.17224564,46686.0,46685.0,0.43911294]
[1640998347417,0.50935964,46686.0,46685.0,0.43911294]
[1640998347617,0.60935964,46686.0,46685.0,0.43911294]
[1640998348317,1.75135964,46686.0,46685.0,0.43911294]
[1640998348518,1.77089945,46686.0,46685.0,0.43911294]
[1640998349321,0.20499969,46685.0,46683.0,0.01041278]
[1640998349518,0.20499969,46685.0,46679.0,0.00980514]
[1640998349519,2.679114,46682.0,46679.0,0.00980514]
[1640998349719,2.88034402,46680.0,46679.0,0.00980514]
[1640998349918,2.98034402,46680.0,46679.0,0.00980514]
[1640998350182,2.98034402,46680.0,46671.0,0.002]
[1640998350183,3.32369893,46680.0,46671.0,0.002]
[1640998350387,0.00122295,46672.0,46658.0,0.5795747]
[1640998350585,0.00122295,46672.0,46654.0,0.81140458]
[1640998350586,0.00127802,46662.0,46654.0,0.5795747]
[1640998350786,0.06512835,46662.0,46654.0,0.5795747]
[1640998351188,0.06512835,46662.0,46648.0,0.9937]
[1640998351384,0.40224235,46662.0,46647.0,0.62611136]
[1640998351584,1.74424235,46662.0,46655.0,0.00985604]
[1640998351783,1.79785035,46662.0,46661.0,0.0001]
[1640998351983,0.65585035,46662.0,46661.0,0.0001]
[1640998352184,0.96558223,46662.0,46661.0,0.0001]
[1640998352384,0.337114,46658.0,46655.0,0.00495604]
[1640998352686,0.38832106,46656.0,46655.0,0.00495604]
[1640998352884,0.67254725,46656.0,46655.0,0.00495604]
[1640998353085,0.77254725,46656.0,46655.0,0.00495604]
[1640998353486,0.79246292,46656.0,46655.0,0.00495604]
[1640998353915,1.13933395,46656.0,46655.0,0.00495604]
[1640998354114,0.56185173,46656.0,46655.0,0.00495604]
[1640998354312,0.56185173,46656.0,46647.0,0.04653666]
[1640998354313,0.79533959,46656.0,46649.0,0.37508361]
[1640998354514,0.47696296,46656.0,46649.0,0.37508361]
[1640998354712,0.45704729,46656.0,46653.0,0.00978487]
[1640998354915,0.337114,46654.0,46653.0,0.00978487]
[1640998355113,0.590726,46654.0,46653.0,0.00978487]
[1640998355312,0.85356302,46654.0,46653.0,0.00978487]
[1640998355712,0.590726,46654.0,46653.0,0.00978487]
[1640998356514,0.61073989,46654.0,46653.0,0.00978487]
[1640998356713,0.51073989,46654.0,46653.0,0.00978487]
[1640998357313,0.55714478,46654.0,46653.0,0.00978487]
[1640998357569,0.5577128,46654.0,46653.0,0.00978487]
[1640998358362,0.57929305,46654.0,46653.0,0.00978487]
[1640998358564,0.51230625,46654.0,46653.0,0.00978487]
[1640998358764,0.54604292,46654.0,46653.0,0.00978487]
[1640998358964,0.54970863,46654.0,46653.0,0.00978487]
[1640998359367,0.57142446,46654.0,46653.0,0.00978487]
[1640998359564,0.54984421,46654.0,46653.0,0.00978487]
[1640998359765,0.57631203,46654.0,46653.0,0.00978487]
[1640998359965,0.61441532,46654.0,46651.0,0.01079509]
[1640998360265,0.17532783,46654.0,46651.0,0.01079509]
[1640998360465,0.19443038,46654.0,46651.0,0.01079509]
[1640998360666,0.21207955,46654.0,46651.0,0.01079509]
[1640998360866,0.07271455,46654.0,46653.0,0.1]
[1640998361067,0.01910255,46654.0,46653.0,1.532114]
[1640998361319,0.01910255,46654.0,46653.0,1.632114]
[1640998361516,0.0196783,46655.0,46653.0,1.532114]
[1640998361718,0.0196783,46655.0,46654.0,1.2]
[1640998361916,0.0196783,46655.0,46654.0,0.42749132]
[1640998362718,0.107197,46665.0,46654.0,0.42749132]
[1640998363117,0.05,46664.0,46654.0,0.42749132]
[1640998363318,0.053599,46660.0,46654.0,0.42749132]
[1640998363718,0.1,46664.0,46654.0,0.42749132]
[1640998363920,0.05,46664.0,46654.0,0.42749132]
[1640998364124,0.1,46664.0,46654.0,0.42749132]
[1640998364519,0.053599,46661.0,46655.0,0.27559318]
[1640998364719,0.053599,46661.0,46657.0,0.00891572]
[1640998365756,0.00129157,46668.0,46657.0,0.00891572]
[1640998365955,0.00129157,46668.0,46659.0,0.29282941]
[1640998366755,0.00129157,46668.0,46661.0,0.42915382]
[1640998366957,0.00129157,46668.0,46657.0,0.00891572]
[1640998367157,0.05,46669.0,46657.0,0.00891572]
[1640998367158,0.00123111,46662.0,46657.0,0.00891572]
[1640998367355,0.337114,46661.0,46657.0,0.00891572]
[1640998367553,0.00123111,46662.0,46657.0,0.00891572]
[1640998367753,0.15,46667.0,46657.0,0.00891572]
[1640998367954,0.2,46667.0,46657.0,0.00891572]
[1640998368153,0.2,46667.0,46657.0,0.30187752]
[1640998368357,0.2,46667.0,46660.0,0.40382409]
[1640998368557,0.053595,46664.0,46660.0,0.40382409]
[1640998368813,0.1,46667.0,46660.0,0.40382409]
[1640998369415,0.05,46667.0,46660.0,0.40382409]
[1640998369616,0.05,46666.0,46661.0,0.27468329]
[1640998369814,0.05,46666.0,46661.0,0.28358034]
[1640998370016,0.053591,46668.0,46661.0,0.28358034]
[1640998370217,0.04756518,46669.0,46661.0,0.00889705]
[1640998370419,0.0388448,46668.0,46661.0,0.00889705]
[1640998370617,0.03340005,46667.0,46661.0,0.00889705]
[1640998370817,0.05121599,46670.0,46661.0,0.00889705]
[1640998370818,0.04772167,46666.0,46661.0,0.00889705]
[1640998371417,0.05,46669.0,46661.0,0.00889705]
[1640998371617,0.05121599,46670.0,46661.0,0.28487116]
[1640998371818,0.00121599,46670.0,46661.0,0.28596444]
[1640998372017,0.00121599,46670.0,46661.0,0.00889705]
[1640998372419,0.04268738,46669.0,46661.0,0.00889705]
[1640998372653,0.053593,46666.0,46661.0,0.00889705]
[1640998373453,0.053593,46666.0,46663.0,0.31773813]
[1640998373653,0.06380057,46664.0,46663.0,0.31773813]
[1640998374757,0.06380057,46664.0,46661.0,0.01779676]
[1640998374954,0.053597,46663.0,46661.0,0.01779676]
[1640998375154,0.053597,46663.0,46661.0,0.00889971]
[1640998376315,0.053594,46665.0,46661.0,0.00889971]
[1640998379617,0.053594,46665.0,46661.0,0.30588387]
[1640998379818,0.14613314,46667.0,46663.0,0.1]
[1640998379819,0.02035738,46667.0,46663.0,0.1]
[1640998380083,0.00135287,46678.0,46666.0,1.3]
[1640998380266,0.0001,46678.0,46672.0,0.27100953]
[1640998380467,0.0001,46678.0,46669.0,0.00121829]
[1640998380666,0.0001,46678.0,46677.0,0.25465089]
[1640998380867,0.06387595,46678.0,46677.0,0.25465089]
[1640998381368,0.0001,46678.0,46677.0,0.25465089]
[1640998381565,0.0001,46678.0,46673.0,0.31400987]
[1640998381566,0.06389784,46678.0,46670.0,0.35105328]
[1640998381766,0.0001,46678.0,46670.0,0.35105328]
[1640998381969,0.0001,46678.0,46671.0,0.27971156]
[1640998382568,0.0001,46678.0,46676.0,0.29128875]
[1640998384807,0.0001,46678.0,46671.0,0.27971156]
[1640998385011,0.0001,46678.0,46671.0,0.27671408]
[1640998385710,0.0001,46678.0,46670.0,0.35105328]
[1640998385909,0.0001,46678.0,46674.0,0.26131783]
[1640998388564,0.053582,46676.0,46674.0,0.26131783]
[1640998389366,0.006582,46676.0,46674.0,0.26131783]
[1640998390768,0.053678,46678.0,46674.0,0.26131783]
[1640998390969,0.337114,46677.0,46674.0,0.26131783]
[1640998391171,0.537114,46677.0,46674.0,0.26256796]
[1640998391414,0.437114,46677.0,46674.0,0.26256796]
[1640998391813,0.437114,46677.0,46674.0,0.00125013]
[1640998392816,0.1,46677.0,46674.0,0.00125013]
[1640998393118,0.337114,46675.0,46674.0,0.00125013]
[1640998393315,0.387114,46675.0,46674.0,0.00125013]
[1640998395779,0.337114,46675.0,46674.0,0.00125013]
[1640998397380,0.05358,46676.0,46674.0,0.00125013]
[1640998398384,0.337114,46675.0,46674.0,0.00125013]
[1640998399710,0.05358,46676.0,46674.0,0.00125013]
[1640998400510,0.14974237,46675.0,46674.0,0.00125013]
[1640998403673,0.19974237,46675.0,46674.0,0.00125013]
[1640998403870,0.14974237,46675.0,46674.0,0.00125013]
[1640998404371,0.19974237,46675.0,46674.0,0.00125013]
[1640998405172,0.53685637,46675.0,46674.0,0.00125013]
[1640998405372,0.48685637,46675.0,46674.0,0.00125013]
[1640998405874,0.53685637,46675.0,46674.0,0.00125013]
[1640998411063,0.48685637,46675.0,46674.0,0.00125013]
[1640998411467,0.14974237,46675.0,46674.0,0.00125013]
[1640998414515,0.19974237,46675.0,46674.0,0.00125013]
[1640998414915,0.05358,46676.0,46674.0,0.00125013]
[1640998415114,0.0001,46678.0,46674.0,0.00125013]
[1640998415316,0.053677,46678.0,46674.0,0.00125013]
[1640998415717,0.0001,46678.0,46674.0,0.00125013]
[1640998416217,0.14974237,46675.0,46674.0,0.00125013]
[1640998417878,0.19974237,46675.0,46674.0,0.00125013]
[1640998418978,0.53659839,46675.0,46674.0,0.00125013]
[1640998420282,0.48685637,46675.0,46674.0,0.00125013]
[1640998422210,0.53685637,46675.0,46674.0,0.00125013]
[1640998426156,0.82053055,46675.0,46674.0,0.00125013]
[1640998426358,0.92053055,46675.0,46674.0,1.3e-07]
[1640998426561,0.00120473,46668.0,46667.0,0.00889663]
[1640998426762,1.55273873,46668.0,46667.0,0.00889663]
[1640998426960,1.60273873,46668.0,46667.0,0.00889663]
[1640998427158,2.20612438,46668.0,46667.0,0.00889663]
[1640998427559,0.37065108,46658.0,46656.0,0.5795747]
[1640998427759,0.14974237,46657.0,46656.0,0.5795747]
[1640998427958,0.20334837,46657.0,46656.0,0.5795747]
[1640998428161,0.25334837,46657.0,46651.0,0.002]
[1640998428357,0.14974237,46652.0,46651.0,0.002]
[1640998428558,0.05,46657.0,46651.0,0.002]
[1640998428829,0.053606,46654.0,46651.0,0.002]
[1640998429434,0.14974237,46652.0,46651.0,0.002]
[1640998429830,0.0047,46661.0,46653.0,0.30847101]
[1640998430031,0.053599,46658.0,46653.0,0.30847101]
[1640998430430,0.27363101,46661.0,46653.0,0.30847101]
[1640998430431,0.1047,46661.0,46653.0,0.30847101]
[1640998430631,0.1047,46661.0,46655.0,0.32480823]
[1640998430834,0.0047,46661.0,46658.0,0.3281524]
[1640998431035,0.14974237,46659.0,46658.0,0.3281524]
[1640998434258,0.14974237,46659.0,46655.0,0.32480823]
[1640998434459,0.053597,46660.0,46651.0,0.002]
[1640998434860,0.053597,46660.0,46651.0,0.00963573]
[1640998435556,0.053597,46660.0,46652.0,0.31148102]
[1640998436922,0.053597,46660.0,46652.0,0.31267371]
[1640998441671,0.053597,46660.0,46652.0,0.00119269]
[1640998443273,0.85183975,46666.0,46652.0,0.32044265]
[1640998443905,0.0049,46668.0,46655.0,0.053589]
[1640998444106,0.0049,46668.0,46662.0,0.33087512]
[1640998444305,0.337114,46667.0,46664.0,0.33376972]
[1640998444905,0.337114,46667.0,46657.0,0.107176]
[1640998445109,0.00128625,46670.0,46657.0,0.107176]
[1640998445505,0.00128625,46670.0,46660.0,0.05359]
[1640998445705,0.00128625,46670.0,46653.0,0.112083]
[1640998445706,0.053595,46665.0,46653.0,0.112083]
[1640998445904,0.053595,46665.0,46658.0,0.40017204]
[1640998446304,0.337114,46664.0,46658.0,0.40017204]
[1640998446705,0.103591,46669.0,46660.0,0.053591]
[1640998447004,0.337114,46668.0,46660.0,0.053591]
[1640998447406,0.437114,46668.0,46658.0,0.40017204]
[1640998447668,0.537114,46668.0,46658.0,0.40017204]
[1640998447872,0.337114,46668.0,46658.0,0.40017204]
[1640998448770,0.053591,46668.0,46658.0,0.40017204]
[1640998449370,1.41435704,46674.0,46658.0,0.40017204]
[1640998449371,0.556083,46678.0,46676.0,0.09956918]
[1640998449574,0.0002,46679.0,46677.0,1.8974285]
[1640998449773,0.0005,46684.0,46682.0,1.25141417]
[1640998449972,0.0005,46684.0,46682.0,1.66983917]
[1640998450172,0.25126995,46683.0,46682.0,1.76983917]
[1640998450370,0.0005,46684.0,46683.0,1.38269908]
[1640998450572,0.97348253,46685.0,46684.0,1.537185]
[1640998450770,0.0003,46686.0,46684.0,1.53841217]
[1640998450970,0.18179908,46692.0,46688.0,0.337163]
[1640998451172,0.18179908,46692.0,46691.0,0.10125077]
[1640998451173,0.04692762,46692.0,46691.0,0.10125077]
[1640998451426,0.0003,46701.0,46691.0,0.10125077]
[1640998451427,0.0003,46701.0,46692.0,1.537185]
[1640998451628,0.72976904,46693.0,46692.0,1.80594075]
[1640998451836,0.72976904,46693.0,46692.0,0.55084075]
[1640998452030,0.72976904,46693.0,46692.0,0.06375575]
[1640998452229,1.06695404,46693.0,46690.0,0.05354]
[1640998452428,0.337185,46692.0,46689.0,0.02191482]
[1640998453529,0.2846259,46696.0,46686.0,0.00984303]
[1640998453729,0.2846259,46696.0,46687.0,0.053559]
[1640998455572,0.009009,46694.0,46686.0,0.00984303]
[1640998455970,0.03511707,46693.0,46686.0,0.00984303]
[1640998456168,0.009009,46694.0,46682.0,0.02154306]
[1640998456169,0.04423846,46692.0,46682.0,0.02154306]
[1640998456369,0.4273386,46689.0,46682.0,0.02154306]
[1640998456569,0.32208648,46688.0,46678.0,0.02102135]
[1640998457468,0.32208648,46688.0,46676.0,0.01924731]
[1640998457872,0.37565948,46688.0,46676.0,0.01924731]
[1640998458470,0.37565948,46688.0,46675.0,0.00129478]
[1640998458671,0.37208648,46688.0,46675.0,0.00129478]
[1640998459310,0.34194469,46677.0,46675.0,0.00129478]
[1640998459512,0.34194469,46677.0,46672.0,0.3809317]
[1640998459513,0.14974237,46676.0,46672.0,0.3809317]
[1640998459716,0.14974237,46673.0,46672.0,0.3809317]
[1640998460313,0.14974237,46673.0,46672.0,0.40089811]
[1640998460514,0.43422711,46673.0,46672.0,0.3813351]
[1640998461513,0.43422711,46673.0,46672.0,0.36136869]
[1640998462666,0.43422711,46673.0,46672.0,0.36259167]
[1640998463967,0.1047,46687.0,46672.0,0.36384551]
[1640998463968,0.00984355,46685.0,46672.0,0.36384551]
[1640998464166,0.00984355,46685.0,46678.0,0.0012604]
[1640998464969,0.00984355,46685.0,46672.0,0.36259167]
[1640998465166,0.00984355,46685.0,46673.0,0.27540195]
[1640998465167,0.06341855,46685.0,46673.0,0.27540195]
[1640998465368,0.06341855,46685.0,46672.0,0.38240042]
[1640998465968,0.05841855,46685.0,46673.0,0.26165933]
[1640998466170,0.34578754,46685.0,46672.0,0.36259167]
[1640998466429,0.048576,46680.0,46672.0,0.38450442]
[1640998466631,0.043576,46680.0,46672.0,0.38450442]
[1640998467430,0.043576,46680.0,46672.0,0.40523816]
[1640998467630,0.053575,46682.0,46672.0,0.40523816]
[1640998467830,0.053575,46682.0,46672.0,0.69846619]
[1640998468032,0.053575,46682.0,46673.0,0.28342923]
[1640998468431,0.053575,46682.0,46672.0,0.71678409]
[1640998468432,0.05331709,46682.0,46672.0,0.71678409]
[1640998468633,0.05331709,46682.0,46672.0,0.6741376]
[1640998469233,0.05331709,46682.0,46672.0,0.38090957]
[1640998469433,0.05331709,46682.0,46672.0,0.40142688]
[1640998469633,0.05331709,46682.0,46672.0,0.38310898]
[1640998470091,2.45248587,46679.0,46672.0,0.38310898]
[1640998470482,0.053581,46677.0,46672.0,0.38300192]
[1640998471885,0.053581,46677.0,46672.0,0.40459384]
[1640998472283,0.053581,46677.0,46672.0,0.38418359]
[1640998472491,0.053581,46677.0,46672.0,0.38092198]
[1640998472884,0.053578,46680.0,46672.0,0.38092198]
[1640998473485,0.053578,46680.0,46672.0,0.40143727]
[1640998473685,0.053578,46680.0,46672.0,0.36259167]
[1640998474824,0.053575,46682.0,46672.0,0.36259167]
[1640998476327,0.053575,46682.0,46672.0,0.38194059]
[1640998477582,0.053575,46682.0,46673.0,0.27603466]
[1640998477876,0.05861,46685.0,46673.0,0.27603466]
[1640998478174,0.157155,46684.0,46672.0,0.38194059]
[1640998478374,0.207155,46684.0,46672.0,0.38194059]
[1640998478574,0.27693192,46683.0,46672.0,0.40358544]
[1640998478874,0.053577,46680.0,46672.0,0.40358544]
[1640998479278,0.053577,46680.0,46672.0,0.36259167]
[1640998479474,0.05300616,46680.0,46672.0,0.38209726]
[1640998481076,0.05300616,46680.0,46672.0,0.40086249]
[1640998481337,0.05300616,46680.0,46672.0,0.3813569]
[1640998481530,0.05300616,46680.0,46672.0,0.40283065]
[1640998481730,0.05300616,46680.0,46672.0,0.38406542]
[1640998482131,0.05,46681.0,46673.0,0.28290191]
[1640998482331,0.1,46683.0,46673.0,0.28290191]
[1640998482533,0.05,46683.0,46673.0,0.28290191]
[1640998482730,0.20861,46685.0,46673.0,0.28290191]
[1640998483131,0.445546,46684.0,46672.0,0.3834313]
[1640998483531,0.545546,46684.0,46672.0,0.40514228]
[1640998484230,0.053579,46679.0,46672.0,0.40514228]
[1640998484434,0.053579,46679.0,46672.0,0.42470936]
[1640998484631,0.053579,46679.0,46672.0,0.38215875]
[1640998485476,0.053579,46679.0,46672.0,0.40346754]
[1640998485676,0.053579,46679.0,46672.0,0.38390046]
[1640998486476,0.053579,46679.0,46672.0,0.40450791]
[1640998486677,0.053579,46679.0,46672.0,0.38319912]
[1640998487578,0.053579,46679.0,46672.0,0.40480507]
[1640998487878,0.053579,46679.0,46672.0,0.38419762]
[1640998488478,0.053579,46679.0,46672.0,0.40306361]
[1640998488679,0.053579,46679.0,46672.0,0.38145766]
[1640998488928,1.81210083,46674.0,46672.0,0.38145766]
[1640998489130,0.053582,46675.0,46672.0,0.38145766]
[1640998489531,0.053582,46675.0,46672.0,0.40003394]
[1640998489734,0.053582,46675.0,46672.0,0.38116795]
[1640998490731,0.053582,46675.0,46672.0,0.36259167]
[1640998491131,0.05332418,46675.0,46672.0,0.36259167]
[1640998491934,0.05358,46677.0,46672.0,0.36259167]
[1640998494074,0.1,46679.0,46672.0,0.36259167]
[1640998494075,0.29516226,46676.0,46672.0,0.36259167]
[1640998494274,0.053588,46675.0,46672.0,0.36259167]
[1640998495075,0.14474237,46673.0,46672.0,0.36259167]
[1640998495474,0.19474237,46673.0,46672.0,0.36259167]
[1640998495974,0.05,46674.0,46672.0,0.36259167]
[1640998496419,0.103588,46675.0,46672.0,0.36259167]
[1640998496616,0.053588,46675.0,46672.0,0.36259167]
[1640998497218,0.053578,46677.0,46672.0,0.36259167]
[1640998497419,0.053578,46677.0,46674.0,0.25435117]
[1640998498015,0.14474237,46675.0,46674.0,0.25435117]
[1640998498417,0.00861,46677.0,46674.0,0.25435117]
[1640998499417,0.14474237,46675.0,46672.0,0.80251008]
[1640998499617,0.053579,46676.0,46672.0,0.80251008]
[1640998500679,0.053579,46676.0,46672.0,0.38258239]
[1640998501682,0.053579,46676.0,46672.0,0.38353714]
[1640998502585,0.053579,46676.0,46672.0,0.4036215]
[1640998502784,0.053579,46676.0,46672.0,0.38267603]
[1640998503684,0.053579,46676.0,46672.0,0.40158836]
[1640998503920,0.048579,46676.0,46672.0,0.381504]
[1640998504822,0.048579,46676.0,46672.0,0.36259167]
[1640998505825,0.00861,46677.0,46672.0,0.99342849]
[1640998506423,0.00861,46677.0,46672.0,0.61105281]
[1640998507668,0.00861,46677.0,46672.0,0.63225048]
[1640998507870,0.00861,46677.0,46673.0,0.34738836]
[1640998508669,0.00861,46677.0,46673.0,0.02179635]
[1640998509072,2.17551913,46674.0,46673.0,0.02179635]
[1640998509272,2.51270413,46674.0,46673.0,0.02179635]
[1640998509472,0.337185,46674.0,46673.0,0.02179635]
[1640998509673,0.00861,46677.0,46673.0,0.02179635]
[1640998509872,0.00861,46677.0,46672.0,0.38339205]
[1640998510873,0.062188,46677.0,46672.0,0.36318575]
[1640998511331,0.00861,46677.0,46672.0,0.36318575]
[1640998512129,0.00861,46677.0,46675.0,0.43725735]
[1640998512331,0.00861,46677.0,46676.0,0.00123129]
[1640998513932,0.00861,46677.0,46675.0,0.01917996]
[1640998514532,0.00861,46677.0,46675.0,0.02099652]
[1640998514930,0.00861,46677.0,46675.0,0.00181656]
[1640998515180,0.28587058,46685.0,46682.0,7.022928]
[1640998515181,0.28464457,46685.0,46682.0,7.022928]
[1640998515380,0.06434247,46683.0,46682.0,7.022928]
[1640998515587,0.35342142,46683.0,46682.0,7.022928]
[1640998515981,0.45342142,46683.0,46682.0,7.022928]
[1640998516882,0.45342142,46683.0,46682.0,7.0445513]
[1640998517283,0.16434247,46683.0,46682.0,7.0445513]
[1640998517885,0.11434247,46683.0,46682.0,7.0445513]
[1640998518085,0.06434247,46683.0,46682.0,7.0445513]
[1640998518487,0.34033447,46683.0,46682.0,7.06553484]
[1640998518689,0.06434247,46683.0,46682.0,7.04391154]
[1640998518927,0.06434247,46683.0,46682.0,7.04426097]
[1640998519829,0.07295247,46683.0,46682.0,7.06318919]
[1640998520028,0.07295247,46683.0,46682.0,7.04366834]
[1640998520429,0.07295247,46683.0,46682.0,7.03866834]
[1640998520831,0.07295247,46683.0,46682.0,7.05997259]
[1640998521029,0.07295247,46683.0,46682.0,7.04104437]
[1640998521629,0.35355367,46683.0,46682.0,7.04104437]
[1640998521830,0.07295247,46683.0,46682.0,7.06263085]
[1640998522132,0.07295247,46683.0,46682.0,7.0413266]
[1640998522780,0.07295247,46683.0,46682.0,7.0626365]
[1640998522980,0.07295247,46683.0,46682.0,7.04105002]
[1640998523984,0.07295247,46683.0,46682.0,7.05977889]
[1640998524182,0.07295247,46683.0,46682.0,7.03846899]
[1640998524982,0.07295247,46683.0,46682.0,7.05873853]
[1640998525183,0.07295247,46683.0,46682.0,7.04000966]
[1640998525384,0.07295247,46683.0,46682.0,7.04120168]
[1640998526090,0.07295247,46683.0,46682.0,7.03990306]
[1640998526733,0.07295247,46683.0,46682.0,7.03678506]
[1640998526934,0.07295247,46683.0,46682.0,7.05742512]
[1640998527135,0.07295247,46683.0,46682.0,7.0384542]
[1640998527937,0.07295247,46683.0,46682.0,7.05985933]
[1640998528138,0.07295247,46683.0,46682.0,7.03921927]
[1640998528939,0.07295247,46683.0,46682.0,7.05957967]
[1640998529142,0.07295247,46683.0,46682.0,7.03817454]
[1640998530078,0.07295247,46683.0,46682.0,7.03768842]
[1640998530975,0.07295247,46683.0,46682.0,7.05776678]
[1640998531177,0.07295247,46683.0,46682.0,7.0378925]
[1640998531975,0.07295247,46683.0,46682.0,7.05731351]
[1640998532176,0.07295247,46683.0,46682.0,7.03723515]
[1640998532875,0.07295247,46683.0,46682.0,7.0587241]
[1640998533076,0.07295247,46683.0,46682.0,7.03930309]
[1640998533935,0.07295247,46683.0,46682.0,7.05883449]
[1640998534234,0.07295247,46683.0,46682.0,7.03734554]
[1640998535034,0.07295247,46683.0,46682.0,7.05840307]
[1640998535236,0.07295247,46683.0,46682.0,7.03887167]
[1640998535434,0.07243247,46683.0,46682.0,7.03887167]
[1640998535634,0.07295247,46683.0,46682.0,7.03887167]
[1640998535934,0.07295247,46683.0,46682.0,7.05841101]
[1640998536135,0.07295247,46683.0,46682.0,7.03735348]
[1640998536838,0.3493238,46683.0,46682.0,7.03735348]
[1640998537039,0.3493238,46683.0,46682.0,7.05623708]
[1640998537670,0.3493238,46683.0,46682.0,7.01781414]
[1640998538071,0.3493238,46683.0,46682.0,7.03664398]
[1640998539071,0.3493238,46683.0,46682.0,7.03590417]
[1640998540073,0.3493238,46683.0,46682.0,7.03797253]
[1640998540273,0.07295247,46683.0,46682.0,7.03797253]
[1640998541075,0.07295247,46683.0,46682.0,7.0378035]
[1640998541822,0.35411125,46683.0,46682.0,7.0378035]
[1640998542019,0.35411125,46683.0,46682.0,7.05635622]
[1640998542222,0.35411125,46683.0,46682.0,7.03636686]
[1640998542620,0.07295247,46683.0,46682.0,7.03636686]
[1640998543020,0.07295247,46683.0,46682.0,7.05685685]
[1640998543219,0.07295247,46683.0,46682.0,7.03830413]
[1640998544021,0.07295247,46683.0,46682.0,7.06014793]
[1640998544223,0.07295247,46683.0,46682.0,7.03965794]
[1640998544921,0.07295247,46683.0,46682.0,7.06021035]
[1640998545172,0.07295247,46683.0,46682.0,7.03836655]
[1640998546070,0.07295247,46683.0,46682.0,7.0563812]
[1640998546272,0.07295247,46683.0,46682.0,7.03582879]
[1640998547073,0.07295247,46683.0,46682.0,7.05629703]
[1640998547273,0.07295247,46683.0,46682.0,7.03828238]
[1640998548071,0.07295247,46683.0,46682.0,7.05835579]
[1640998548272,0.07295247,46683.0,46682.0,7.03788755]
[1640998549135,0.07295247,46683.0,46682.0,7.05339278]
[1640998549335,0.07295247,46683.0,46682.0,7.03331937]
[1640998550136,0.07295247,46683.0,46682.0,7.05334776]
[1640998550336,0.07295247,46683.0,46682.0,7.03227353]
[1640998551137,0.07295247,46683.0,46682.0,7.05379217]
[1640998551337,0.07295247,46683.0,46682.0,7.03376378]
[1640998551943,0.00861,46683.0,46682.0,7.03376378]
[1640998552140,0.00861,46683.0,46682.0,7.05491848]
[1640998552350,0.00861,46683.0,46682.0,7.03466406]
[1640998552781,1e-05,46683.0,46682.0,7.03466406]
[1640998552982,1e-05,46683.0,46682.0,7.61357396]
[1640998553182,1e-05,46683.0,46682.0,7.65838464]
[1640998554181,1e-05,46683.0,46682.0,7.68023491]